Cogmind - Beta 9.5 @@@ ROGUE MODE // 2020.04.03 @ 18:02:31 Player: erp.lsf Result: Self-destructed Performance ------------- Evolutions (3) 1500 Regions Visited (4) 800 Robots Destroyed (31) 155 Value Destroyed (1336) 1336 Prototype IDs (1) 20 Alien Tech Used (0) 0 Bonus (0) 0 TOTAL SCORE: 3811 Bonus ------- None Cogmind --------- Core Integrity 607/700 Matter 300/300 Energy 150/150 System Corruption 1% Temperature Cool (0) Movement Rolling (110) Ox1 Location -7/Factory Parts ------- > --- POWER (1) -------- Light Angular Momentum Engine > --- PROPULSION (4) --- Armored Huge Wheel > --- UTILITY (5) ------ Large Storage Unit Large Storage Unit Advanced Signal Interpreter Improved Targeting Computer > --- WEAPON (3) ------- Minigun Minigun Axe > --- INVENTORY (16) --- Light Nuclear Core Light Angular Momentum Engine Large Storage Unit Enhanced Optical Array Armor Integrity Analyzer Recoil Stabilizer Kinecellerator Improved Medium Armor Plating Shield Generator Minigun Minigun Rocket Launcher Missile Launcher Peak State ------------ > --- POWER ------------ Light Angular Momentum Engine > --- PROPULSION ------- Carbon-fiber Leg Armored Huge Wheel > --- UTILITY ---------- Large Storage Unit Large Storage Unit Advanced Signal Interpreter Improved Targeting Computer Hardened Medium Armor Plating > --- WEAPON ----------- Minigun Minigun Axe > --- INVENTORY -------- Light Nuclear Core Light Angular Momentum Engine Large Storage Unit Enhanced Optical Array Armor Integrity Analyzer Recoil Stabilizer Kinecellerator Improved Medium Armor Plating Shield Generator Minigun Minigun Rocket Launcher Missile Launcher [Rating: 38] Favorites ----------- Power Light Angular Momentum Engine Engine Light Angular Momentum Engine Propulsion Aluminum Leg Treads Light Treads Leg Aluminum Leg Wheel Compact Wheel Utility Large Storage Unit Device Improved Sensor Array Storage Large Storage Unit Processor Signal Interpreter Protection Hardened Medium Armor Plating Weapon Minigun Energy Gun Small Laser Ballistic Gun Minigun Slashing Weapon Axe Build | -11 -10 -9 -8 -7 ------- Run | Scr Mat Mat Mat Fac Slots Evolved 6 | . . 2 2 2 Power . | . . . . . Propulsion 2 | . . 1 1 . Utility 3 | . . 1 1 1 Weapon 1 | . . . . 1 Parts Attached 42 | 5 4 8 16 9 Power 5 | 1 . 2 2 . Engine 5 | 1 . 2 2 . Core . | . . . . . Reactor . | . . . . . Propulsion 10 | 2 . 2 4 2 Treads 1 | . . 1 . . Leg 6 | . . 1 4 1 Wheel 3 | 2 . . . 1 Hover . | . . . . . Flight . | . . . . . Utility 10 | . 2 1 3 4 Device 2 | . . . 1 1 Storage 2 | . 1 1 . . Processor 3 | . 1 . 1 1 Hackware . | . . . . . Protection 3 | . . . 1 2 Artifact . | . . . . . Weapon 17 | 2 2 3 7 3 Energy Gun 1 | 1 . . . . Energy Cannon . | . . . . . Ballistic Gun 15 | 1 2 3 7 2 Ballistic Cannon . | . . . . . Launcher . | . . . . . Special Weapon . | . . . . . Impact Weapon . | . . . . . Slashing Weapon 1 | . . . . 1 Piercing Weapon . | . . . . . Special Melee Weapon . | . . . . . Unidentified Prototypes 1 | . . 1 . . Parts Lost 18 | . . 2 8 8 Power 2 | . . 1 1 . Propulsion 9 | . . 1 3 5 Utility 2 | . . . 1 1 Weapon 5 | . . . 3 2 Highest Loss Streak 8 | . . 1 8 4 Average Slot Usage (%) 90 | . 88 92 85 94 Engine 9 | . 14 10 9 7 Treads 1 | . . 1 4 . Leg 15 | . . 4 15 24 Wheel 9 | . 28 19 4 . Device 1 | . . . 4 . Storage 15 | . 5 22 18 15 Processor 12 | . 11 11 10 15 Protection 2 | . . . . 6 Ballistic Gun 20 | . 25 21 18 20 Naked Turns . | . . . . . Heaviest Build 58 | 7 25 45 52 58 Greatest Support 50 | 26 26 26 45 50 Greatest Overweight (x) 13 | . . 2 13 3 Average Overweight (x) 1 | . . 1 1 1 Largest Inventory Capacity 16 | 4 10 16 16 16 Average Capacity 14 | 4 6 16 16 16 Most Carried 16 | 1 6 11 16 16 Average Carried 11 | . 4 8 13 14 Final Capacity 16 | 4 10 16 16 16 Final Carried 16 | 1 6 11 16 13 Class Distribution -------------------- 60% | Mutant 28% | Scavenger-Gunner 10% | Scavenger-Mutant Dominant Class ---------------- Mutant | -10/Materials Mutant | -9/Materials Mutant | -8/Materials Scavenger-Gunner | -7/Factory Resources | -11 -10 -9 -8 -7 ----------- Run | Scr Mat Mat Mat Fac Matter Collected 1374 | 250 178 237 283 426 Remotely . | . . . . . Salvage Created 1397 | . 222 373 382 420 Parts 69 | . 11 23 15 20 Haulers Intercepted . | . . . . . Recyclers Shooed . | . . . . . Parts Field Recycled . | . . . . . Retrieved Matter . | . . . . . Parts Self-Destructed . | . . . . . Prevented . | . . . . . Kills | -11 -10 -9 -8 -7 ------- Run | Scr Mat Mat Mat Fac Combat Hostiles Destroyed 31 | . 5 9 7 10 Melee 2 | . . . . 2 Guns 29 | . 5 9 7 8 Classes Destroyed 6 | . 1 1 1 3 Swarmer 3 | . . . . 3 Grunt 20 | . 5 7 4 4 Duelist 1 | . . . . 1 Sentry 5 | . . 2 2 1 Hunter 1 | . . . 1 . Programmer 1 | . . . . 1 Best Kill Streak 4 | . 4 2 2 2 Combat Bots Only 4 | . 4 2 2 2 Max Kills in Single Turn 1 | . 1 1 1 1 Gunslinging . | . . . . . Exploded . | . . . . . Melee 1 | . . . . 1 Uniques/NPCs Destroyed . | . . . . . Combat | -11 -10 -9 -8 -7 -------- Run | Scr Mat Mat Mat Fac Damage Taken 3222 | . 310 406 1175 1331 Core 467 | . 116 28 230 93 Absorbed by Shields . | . . . . . Core Remaining (%) 76 | 100 53 93 58 . Volleys Fired 114 | . 24 23 32 35 Largest 3 | . 2 2 2 3 Hottest 75 | . 40 46 50 75 Shots Fired 234 | . 48 46 62 78 Gun 234 | . 48 46 62 78 Cannon . | . . . . . Launcher . | . . . . . Special . | . . . . . Kinetic 234 | . 48 46 62 78 Thermal . | . . . . . Explosive . | . . . . . Electromagnetic . | . . . . . Robot Hit Streak 18 | . 8 18 10 11 Robot Miss Streak 5 | . 3 1 5 5 Penetration Max . | . . . . . Secondary Targets 3 | . 1 . 2 . Max Gunslinging Chain 1 | . 1 . 1 . Shots Hit Robots 168 | . 36 36 42 54 Core Hits 65 | . 12 14 18 21 Critical Hits 1 | . . . . 1 Critical Kills . | . . . . . Critical Parts Destroyed 1 | . . . . 1 Melee Attacks 5 | . . . . 5 Impact . | . . . . . Slashing 5 | . . . . 5 Piercing . | . . . . . Sneak Attacks . | . . . . . Combat Hostiles . | . . . . . Follow-up Attacks . | . . . . . Damage Inflicted 2535 | . 435 523 619 958 Guns 2400 | . 435 523 619 823 Cannons . | . . . . . Explosions 65 | . . . . 65 Melee 70 | . . . . 70 Ramming . | . . . . . Kinetic 2400 | . 435 523 619 823 Thermal 65 | . . . . 65 Explosive . | . . . . . Electromagnetic . | . . . . . Impact . | . . . . . Slashing 70 | . . . . 70 Piercing . | . . . . . Highest Corruption 1 | . . . . 1 Average Corruption 1 | . . . . 1 Corruption Purged . | . . . . . Effects 3 | . . . . 3 Energy Discharges 3 | . . . . 3 Overload Shots . | . . . . . Overflow Damage . | . . . . . Projectiles . | . . . . . Explosions . | . . . . . Melee . | . . . . . Knockbacks . | . . . . . Impact . | . . . . . Kinetic . | . . . . . Secondary . | . . . . . Self-Inflicted Damage . | . . . . . Shots . | . . . . . Rammed . | . . . . . Targets Rammed . | . . . . . Kicked . | . . . . . Crushed . | . . . . . Highest Temperature 112 | . 2 18 24 112 Average Temperature 22 | . 2 7 7 32 Received Heat Transfer 1122 | . 177 189 414 342 Siege Activations . | . . . . . Robots Corrupted . | . . . . . Combat Hostiles . | . . . . . Parts Fried . | . . . . . Impact Corruptions . | . . . . . Robots Melted . | . . . . . Combat Hostiles . | . . . . . Parts Melted . | . . . . . Heat Transferred 100 | . . . . 100 Parts Sabotaged . | . . . . . Parts Stolen . | . . . . . Parts Stripped . | . . . . . Power Chain Reactions . | . . . . . Missiles Intercepted . | . . . . . Alert | -11 -10 -9 -8 -7 ------- Run | Scr Mat Mat Mat Fac Peak Influence 245 | . 170 245 130 167 Average Influence 61 | . 37 94 88 41 Maximum Alert Level 1 | . . 1 . . Low Security (%) 98 | 100 100 91 100 100 Level 1 1 | . . 8 . . Level 2 . | . . . . . Level 3 . | . . . . . Level 4 . | . . . . . Level 5 . | . . . . . High Security . | . . . . . Max Security . | . . . . . Squads Dispatched 9 | . 2 4 1 2 Investigation 2 | . . 1 1 . Extermination 1 | . . . . 1 Reinforcement 6 | . 2 3 . 1 Assault . | . . . . . Garrison . | . . . . . Intercept . | . . . . . Construction Impeded . | . . . . . Haulers Reinforced . | . . . . . Stealth | -11 -10 -9 -8 -7 --------- Run | Scr Mat Mat Mat Fac Distress Signals 2 | . . 1 . 1 Communications Jammed . | . . . . . Distress Signals . | . . . . . Times Spotted 67 | . 10 16 17 24 Peak Tracking Total 8 | . 5 3 4 8 Tactical Retreats 5 | . 2 . 1 2 Traps | -11 -10 -9 -8 -7 ------- Run | Scr Mat Mat Mat Fac Traps Triggered 3 | . . 1 1 1 Indirectly . | . . . . . Trap Hack Attempts . | . . . . . Triggered . | . . . . . Disarmed . | . . . . . Reprogrammed . | . . . . . Reused . | . . . . . Traps Extracted . | . . . . . Installed . | . . . . . Triggered . | . . . . . Machines | -11 -10 -9 -8 -7 ---------- Run | Scr Mat Mat Mat Fac Machines Disabled 3 | . . . . 3 Max in Single Turn 3 | . . . . 3 Garrison Access 1 | . . . . 1 Machines Sabotaged . | . . . . . Garrisons Compromised . | . . . . . Overloaded Fab Kills . | . . . . . Fab Network Shutdowns . | . . . . . Hacking | -11 -10 -9 -8 -7 --------- Run | Scr Mat Mat Mat Fac Machines Accessed 3 | . . . . 3 Terminals 1 | . . . . 1 Fabricators . | . . . . . Repair Stations . | . . . . . Recycling Units . | . . . . . Scanalyzers . | . . . . . Garrison Access 2 | . . . . 2 Total Hacks 5 | . . . . 5 Successful 2 | . . . . 2 Failed 3 | . . . . 3 Catastrophic 1 | . . . . 1 Database Lockouts . | . . . . . Manual 3 | . . . . 3 Terminals 2 | . . . . 2 Fabricators . | . . . . . Repair Stations . | . . . . . Recycling Units . | . . . . . Scanalyzers . | . . . . . Garrison Access 3 | . . . . 3 Terminal Hacks . | . . . . . Fabricator Hacks . | . . . . . Repair Station Hacks . | . . . . . Recycling Unit Hacks . | . . . . . Scanalyzer . | . . . . . Garrison Access Hacks 1 | . . . . 1 Seal Access 1 | . . . . 1 Unauthorized Hacks 3 | . . . . 3 Terminals 1 | . . . . 1 Botnet 1 | . . . . 1 Fabricators . | . . . . . Repair Stations . | . . . . . Recycling Units . | . . . . . Scanalyzers . | . . . . . Garrison Access . | . . . . . Data Cores Recovered . | . . . . . Used . | . . . . . Hacking Detections 3 | . . . . 3 Full Trace Events . | . . . . . Feedback Events . | . . . . . Feedback Blocked . | . . . . . Robot Schematics Acquired . | . . . . . Robots Built . | . . . . . Matter . | . . . . . Time . | . . . . . Total Robot Build Rating . | . . . . . Part Schematics Acquired . | . . . . . Parts Built . | . . . . . Matter . | . . . . . Time . | . . . . . Total Part Build Rating . | . . . . . Parts Repaired . | . . . . . Time . | . . . . . Parts Recycled . | . . . . . Recycled Matter . | . . . . . Retrieved Matter . | . . . . . Retrieved Components . | . . . . . Parts Scanalyzed . | . . . . . Part Schematics Acquired . | . . . . . Parts Damaged . | . . . . . Bothacking | -11 -10 -9 -8 -7 ------------ Run | Scr Mat Mat Mat Fac Used RIF Installer . | . . . . . Robots Hacked . | . . . . . Non-combat . | . . . . . Combat . | . . . . . Robot Hacks Applied . | . . . . . Relay Couplers Released 2 | . . . . 2 Machine Destruction 2 | . . . . 2 Robots Rewired . | . . . . . Allies Hacked . | . . . . . Hacks Repelled . | . . . . . Allies | -11 -10 -9 -8 -7 -------- Run | Scr Mat Mat Mat Fac Total Allies . | . . . . . Largest Group . | . . . . . Highest-Rated Group . | . . . . . Highest-Rated Ally . | . . . . . Total Orders . | . . . . . Ally Attacks . | . . . . . Total Damage . | . . . . . Kills . | . . . . . Allies Corrupted . | . . . . . Allies Melted . | . . . . . Intel | -11 -10 -9 -8 -7 ------- Run | Scr Mat Mat Mat Fac Robot Analysis Total . | . . . . . Derelict Logs Recovered . | . . . . . Drone Launches . | . . . . . Drone Recoveries . | . . . . . Exploration | -11 -10 -9 -8 -7 ------------- Run | Scr Mat Mat Mat Fac Turns Passed 3135 | 47 466 536 835 1251 Spaces Moved 1967 | 43 406 386 466 666 Core 8 | 1 . . 7 . Treads 2 | . . . 2 . Legs 731 | . . . 182 549 Wheels 1226 | 42 406 386 275 117 Hover . | . . . . . Flight . | . . . . . Fastest Speed 50 | 50 90 100 120 110 Average Speed 124 | 89 90 103 141 149 Slowest Speed 700 | 100 90 120 700 210 Overloaded Moves . | . . . . . Propulsion Burnouts . | . . . . . Robots Hopped . | . . . . . Cave-ins Triggered . | . . . . . Exploration Rate (%) 26 | 4 39 31 39 17 Regions Visited 4 Branch Regions . Pre-discovered Areas . | . . . . . Known Exits Taken 3 | . 1 1 1 . Unknown Exits Taken 1 | 1 . . . . Scrap Searched . | . . . . . Spaces Dug 3 | . . . . 3 Terrain Destroyed 16 | . . . . 16 Melee 3 | . . . . 3 Projectile . | . . . . . AOE 13 | . . . . 13 Actions | -11 -10 -9 -8 -7 --------- Run | Scr Mat Mat Mat Fac Total 2436 | 49 457 480 586 864 Wait 255 | . 16 56 49 134 Move 1963 | 42 405 385 465 666 Hop . | . . . . . Pick Up 30 | 2 5 4 15 4 Fast Attach 18 | 4 3 5 3 3 Attach 16 | 1 . 2 9 4 Detach 7 | . 1 3 2 1 Swap 8 | . 1 1 4 2 Drop 15 | . 2 1 7 5 Fire 114 | . 24 23 32 35 Melee 5 | . . . . 5 Ram . | . . . . . Kick . | . . . . . Crush . | . . . . . Escape Stasis 5 | . . . . 5 Rewire . | . . . . . Trap . | . . . . . Miscellaneous . | . . . . . Route ------- -11/Scrapyard -10/Materials -9/Materials (discovered 2 exits: *Mat / *Min) -8/Materials -7/Factory History --------- Turn | Location | Event 26 | -11/Scrapyard | Discovered new exit (range 15) 48 | -11/Scrapyard | Entered Materials 303 | -10/Materials | Build established: Mutant 489 | -10/Materials | Discovered new exit (range 4) 493 | -10/Materials | Identified exit to Materials 514 | -10/Materials | Entered another Materials area 514 | -9/Materials | Evolved 2 slots: Propulsion x1, Utility x1 740 | -9/Materials | Discovered new exit (range 7) 769 | -9/Materials | Identified exit to Mines 988 | -9/Materials | Discovered new exit (range 16) 1014 | -9/Materials | Identified exit to Materials 1050 | -9/Materials | Entered another Materials area 1050 | -8/Materials | Evolved 2 slots: Propulsion x1, Utility x1 1562 | -8/Materials | Lost 8 parts (1p3n1u3w) 1828 | -8/Materials | Discovered new exit (range 16) 1884 | -8/Materials | Identified exit to Factory 1885 | -8/Materials | Entered Factory 1885 | -7/Factory | Evolved 2 slots: Utility x1, Weapon x1 2197 | -7/Factory | Build established: Scavenger-Gunner 2911 | -7/Factory | Lost 4 parts (3n1w) 3136 | -7/Factory | Self-destructed Last Messages --------------- 02861_ S-27 Virus destroyed. 02866_ Carbon-fiber Leg destroyed. 02869_ K-01 Serf collects debris. 02869_ Destroyed VTOL Module. 02873_ K-01 Serf collects debris. 02873_ Acquired 29 matter. 02876_ K-01 Serf collects debris. 02878_ Acquired 21 matter. 02880_ K-01 Serf collects debris. 02880_ Aluminum Leg destroyed. 02883_ K-01 Serf collects debris. 02884_ S-27 Virus destroyed. 02889_ K-01 Serf collects debris. 02903_ Acquired 26 matter. 02908_ Acquired 6 matter. 02996_ Acquired Arm. Huge Wheel. 03009_ Connecting with Garrison Access... 03031_ Acquired 10 matter. 03115_ Hrd. Medium Armor Plating destroyed. 03118_ Carbon-fiber Leg destroyed. Map ----- +----------------------------------------------------+ | # % | | # % """ """ | | # """ """ | | # """ """ | | # | | # | | # ####### | | # #?????? | | # #??????? T | | # #??????? | | / #????????? ? | | # #?????????? | | #######/##### #??????????? | | ??????# #???# #??????????? | | ??????# #???# #??????????? | | ??????# #???# ######g########## ???????????? | | ???#### ##### # #???????????????? | | ???# # """g""" #???????????????? | | ???# # """ """ #???????????????? | | ???# # """ """ #???????????????? | | ???# ^ # #???????????????? | | ???# # """ """ #???????????????? | | ???# # """ """ #???????????????? | | ???# # """ """ #???????????????? | | ???# ########## #???????????????? | | ???# #????????# @ #???????????????? | | ?? #????????# #???????????????? | | #????????# / #???????????????? | | #????????##############???????????????? | | #?????????????????????????????????????? | | #?????????????????????????????????????? | | #?????????????????????????????????????? | | #?????????????????????????????????????? | | ##########?????????????????????????????????????? | | ???????????????????????????????????????????????? | | ???????????????????????????????????????????????? | | ???????????????????????????????????????????????? | | ????????????????????????????????????????????????? | | ????????????????????????????????????????????????? | | ????????????????????????????????????????????????? | | ?????????????????????????????????????????????????? | | ?????????????????????????????????????????????????? | | ?????????????????????????????????????????????????? | | ?????????????????????????????????????????????????? | | ?????????????????????????????????????????????????? | | ?????????????????????????????????????????????????? | | ?????????????????????????????????????????????????? | | ?????????????????????????????????????????????????? | | ?????????????????????????????????????????????????? | | ?????????????????????????????????????????????????? | +----------------------------------------------------+ Best States ------------- Heat Dissipation 34 Energy Generation 18 Energy Capacity 265 Matter Stores 300 Matter Capacity 300 Sight Range 16 Robot Scan Range 13 Terrain Scan Density 10 Armor Coverage 225 Evasion (%) 42 Targeting Accuracy 6 Recoil Reduction 1 Item Schematics ----------------- None Robot Schematics ------------------ None Fabricated ------------ Nothing Alien Tech Used ----------------- None Achievements -------------- None Challenges ------------ None Game ------ Seed MappingZioniteVibroblade Manual? 0 Play Time 00:27:21 Cumulative 37.7 hours Start 2020.04.03 @ 17:20:22 End 2020.04.03 @ 18:02:31 Sessions 1 Manual Loads 0 Difficulty Rogue Special Mode None Game No. 48 Rogue 48 Adventurer 0 Explorer 0 Win Type - Total 0 Types 0/0/0/0/0/0/0 Lore% 26 Gallery% 38 Achievement% 33 Wizard Run 0 Options --------- ASCII 0 Keyboard 1 Movement Arrows Keybinds 0 Fullscreen 1 Font 24/Smallcaps Map View 64x52 Tactical HUD 1 Map Filters NONE Filters NONE Steam 1 RUN: ff579fee-7b25-4ecc-9c94-f52cfba470c7